bitfinex-derivatives/quotes_BNBF0:USTF0_20250221
["timestamp","ask_amount","ask_price","bid_price","bid_amount"]
[1740150239866,3.10044377,663.24,662.61,0.30183667]
[1740150240065,1.46001196,663.3,662.61,0.30183667]
[1740150240267,3.10037343,663.29,662.61,0.30183667]
[1740150240462,4.56038539,663.28,662.61,0.30183667]
[1740150240660,3.10037343,663.27,662.61,0.30183667]
[1740150240862,5.43222672,663.26,662.61,0.30183667]
[1740150241061,3.10037343,663.25,662.61,0.30183667]
[1740150241268,3.10045906,663.24,662.61,0.30183667]
[1740150241462,2.33185329,663.26,662.61,0.30183667]
[1740150241665,3.10050283,663.25,662.61,0.30183667]
[1740150241865,1.46001196,663.27,662.61,0.30183667]
[1740150242063,3.10044074,663.26,662.61,0.30183667]
[1740150242266,3.10044074,663.25,662.61,0.30183667]
[1740150242568,2.33187919,663.24,662.61,0.30183667]
[1740150243364,1.46001196,663.26,662.61,0.30183667]
[1740150243568,3.10081018,663.25,662.61,0.30183667]
[1740150243768,1.46001196,663.26,662.61,0.30183667]
[1740150243970,1.46001196,663.29,662.61,0.30183667]
[1740150244272,1.46001196,663.25,662.61,0.30183667]
[1740150244664,3.10067507,663.24,662.61,0.30183667]
[1740150244862,3.10067507,663.23,662.61,0.30183667]
[1740150245070,2.33229792,663.24,662.61,0.30183667]
[1740150245270,3.10062912,663.23,662.61,0.30183667]
[1740150245471,2.33229792,663.24,662.61,0.30183667]
[1740150245975,3.10042558,663.23,662.61,0.30183667]
[1740150246169,1.46001196,663.28,662.61,0.30183667]
[1740150246370,3.10052719,663.27,662.61,0.30183667]
[1740150246566,1.46001196,663.25,662.61,0.30183667]
[1740150246769,3.10052719,663.24,662.61,0.30183667]
[1740150246969,3.10041919,663.23,662.61,0.30183667]
[1740150247166,1.46001196,663.21,662.61,0.30183667]
[1740150248274,1.47881918,663.18,662.61,0.30183667]
[1740150248674,1.47881918,663.2,662.63,2.29058457]
[1740150248873,1.47881918,663.22,662.63,2.29058457]
[1740150249173,1.46001196,663.21,662.64,0.30182301]
[1740150250068,1.46001196,663.25,662.64,0.30182301]
[1740150250468,1.46001196,663.25,662.69,2.29058457]
[1740150250668,1.47881918,663.32,662.69,2.29058457]
[1740150250669,1.46001196,663.28,662.7,0.30179568]
[1740150251067,3.10028779,663.27,662.7,0.30179568]
[1740150251376,1.46001196,663.28,662.7,0.30179568]
[1740150251770,1.46001196,663.27,662.7,0.30179568]
[1740150252373,1.47881918,663.32,662.7,0.30179568]
[1740150252374,1.46001196,663.28,662.7,0.30179568]
[1740150252974,1.46001196,663.27,662.7,0.30179568]
[1740150253872,1.47883795,663.47,662.7,0.30179568]
[1740150253873,1.46001196,663.4,662.7,0.30179568]
[1740150254372,1.46001196,663.42,662.7,0.30179568]
[1740150255275,1.48003899,663.67,662.7,0.30179568]
[1740150255471,3.10192756,663.66,662.7,0.30179568]
[1740150255777,4.58183874,663.65,662.7,0.30179568]
[1740150255978,6.0418507,663.64,663.1,2.29058457]
[1740150256279,1.46001196,663.64,663.1,2.29058457]
[1740150256578,1.48003899,663.62,663.11,0.30160908]
[1740150256779,1.46001196,663.61,663.11,0.30160908]
[1740150257575,1.46001196,663.64,663.11,0.30160908]
[1740150258175,1.46001196,663.67,663.11,0.30160908]
[1740150259175,2.69075414,664.47,663.11,0.30160908]
[1740150259579,1.47665547,663.82,663.11,0.30160908]
[1740150259776,1.47665525,663.77,663.11,0.30160908]
[1740150260375,1.47665525,663.84,663.11,0.30160908]
[1740150260580,1.47665547,663.82,663.11,0.30160908]
[1740150260880,3.09487628,663.81,663.11,0.30160908]
[1740150261080,1.47665525,663.78,663.11,0.30160908]
[1740150261680,1.47665525,663.8,663.11,0.30160908]
[1740150262282,1.47665525,663.81,663.11,0.30160908]
[1740150262884,1.47665525,663.88,663.11,0.30160908]
[1740150263278,2.68520136,665.4,663.11,0.30160908]
[1740150263477,0.30062078,665.29,663.11,0.30160908]
[1740150263879,1.47520289,663.82,663.11,0.30160908]
[1740150264083,1.47520289,663.83,663.11,0.30160908]
[1740150264878,2.95041833,663.83,663.11,0.30160908]
[1740150265384,1.47521544,663.83,663.11,0.30160908]
[1740150265584,1.47520289,663.83,663.11,0.30160908]
[1740150265885,1.47520289,663.82,663.11,0.30160908]
[1740150266278,2.95041833,663.82,663.11,0.30160908]
[1740150266784,1.47520289,663.81,663.11,0.30160908]
[1740150266985,1.47520289,663.8,663.11,0.30160908]
[1740150267285,1.47521544,663.8,663.11,0.30160908]
[1740150267785,2.95041833,663.81,663.11,0.30160908]
[1740150268888,1.47521544,663.81,663.11,0.30160908]
[1740150269185,2.95041833,663.81,663.11,0.30160908]
[1740150269385,1.47520289,663.81,663.11,0.30160908]
[1740150269779,2.95041833,663.82,663.11,0.30160908]
[1740150269979,2.94963043,663.82,663.11,0.30160908]
[1740150270184,1.47441499,663.81,663.11,0.30160908]
[1740150270588,2.94963043,663.82,663.11,0.30160908]
[1740150271089,1.47521544,663.82,663.11,0.30160908]
[1740150271689,1.47521544,663.88,663.11,0.30160908]
[1740150271884,2.94941991,663.89,663.12,2.022]
[1740150272087,2.94941991,663.89,663.13,0.30159998]
[1740150272389,1.47521544,663.89,663.13,0.30159998]
[1740150272688,2.94941991,663.91,663.13,0.30159998]
[1740150273284,1.47521544,663.91,663.13,0.30159998]
[1740150274282,1.831,664.25,663.13,0.30159998]
[1740150274283,1.47521544,663.96,663.13,0.30159998]
[1740150274783,1.47420447,663.96,663.13,0.30159998]
[1740150274988,2.94862657,663.97,663.13,0.30159998]
[1740150275187,1.47521544,663.97,663.13,0.30159998]
[1740150275489,2.94862657,663.99,663.13,0.30159998]
[1740150275690,1.47521544,663.99,663.13,0.30159998]
[1740150276087,1.47521544,664.05,663.13,0.30159998]
[1740150276589,1.47521544,664.11,663.13,0.30159998]
[1740150276787,3.08905269,664.1,663.13,0.30159998]
[1740150276984,2.32268933,664.1,663.13,0.30159998]
[1740150277686,1.47521544,664.16,663.13,0.30159998]
[1740150278391,1.47521544,664.17,663.13,0.30159998]
[1740150278587,1.47341113,664.15,663.13,0.30159998]
[1740150278788,1.47521544,664.17,663.13,0.30159998]
[1740150278987,1.47124946,664.04,663.13,0.30159998]
[1740150279393,1.47521544,664.04,663.13,0.30159998]
[1740150279590,2.9464649,664.04,663.13,0.30159998]
[1740150279790,1.47124946,664.03,663.13,0.30159998]
[1740150279990,2.9464649,664.04,663.13,0.30159998]
[1740150280186,1.47124946,664.03,663.13,0.30159998]
[1740150280387,1.47521544,664.04,663.13,0.30159998]
[1740150280792,1.47521544,664.05,663.13,0.30159998]
[1740150281995,1.47521544,664.14,663.13,0.30159998]
[1740150282897,1.47004617,664.22,663.13,0.30159998]
[1740150283095,3.08321985,664.21,663.13,0.30159998]
[1740150283395,3.08321985,664.2,663.13,0.30159998]
[1740150283597,1.47521544,664.19,663.13,0.30159998]
[1740150284097,1.47521544,664.21,663.13,0.30159998]
[1740150284294,3.08137936,664.2,663.13,0.30159998]
[1740150284492,1.47521544,664.21,663.13,0.30159998]
[1740150284692,3.08145266,664.2,663.13,0.30159998]
[1740150284999,1.47521544,664.22,663.13,0.30159998]
[1740150285299,3.08152719,664.21,663.13,0.30159998]
[1740150285598,1.47521544,664.2,663.13,0.30159998]
[1740150285999,1.831,664.25,663.13,0.30159998]
[1740150286299,3.08105417,664.24,663.13,0.30159998]
[1740150286499,3.0800847,664.23,663.13,0.30159998]
[1740150286693,3.0798596,664.22,663.13,0.30159998]
[1740150286898,3.0798596,664.21,663.13,0.30159998]
[1740150287098,1.4684705,664.17,663.13,0.30159998]
[1740150287292,1.4684705,664.14,663.13,0.30159998]
[1740150287493,4.55507504,664.13,663.13,0.30159998]
[1740150287699,3.0798596,664.12,663.13,0.30159998]
[1740150287897,3.0798596,664.11,663.13,0.30159998]
[1740150288094,1.47521544,664.09,663.13,0.30159998]
[1740150288999,1.47521544,664.21,663.13,0.30159998]
[1740150289201,3.0792909,664.2,663.13,0.30159998]
[1740150289501,3.0792909,664.19,663.13,0.30159998]
[1740150289699,3.0792909,664.18,663.13,0.30159998]
[1740150289902,1.4684705,664.16,663.13,0.30159998]
[1740150290096,1.4684705,664.09,663.13,0.30159998]
[1740150290300,1.4684705,664.08,663.13,0.30159998]
[1740150290500,1.4684705,664.09,663.13,0.30159998]
[1740150290797,2.94368594,664.08,663.13,0.30159998]
[1740150291200,1.47521544,664.08,663.13,0.30159998]
[1740150291904,2.94368594,664.12,663.13,0.30159998]
[1740150292704,1.4684705,664.11,663.13,0.30159998]
[1740150292900,2.94368594,664.12,663.13,0.30159998]
[1740150293302,1.47521544,664.12,663.13,0.30159998]
[1740150293499,1.47521544,664.11,663.13,0.30159998]
[1740150294307,1.47521544,664.2,663.13,0.30159998]
[1740150295206,1.47521544,664.24,663.13,0.30159998]
[1740150295407,3.03855144,664.23,663.13,0.30159998]
[1740150295600,3.03855144,664.22,663.13,0.30159998]
[1740150295805,3.03855144,664.21,663.13,0.30159998]
[1740150295999,3.03855144,664.2,663.13,0.30159998]
[1740150296206,4.50702194,664.19,663.13,0.30159998]
[1740150296406,3.03855144,664.18,663.13,0.30159998]
[1740150296608,3.03855144,664.17,663.13,0.30159998]
[1740150296809,3.03855144,664.16,663.13,0.30159998]
[1740150297110,3.03855144,664.15,663.13,0.30159998]
[1740150297407,2.27487055,664.18,663.13,0.30159998]
[1740150297603,3.04011547,664.17,663.13,0.30159998]
[1740150297804,3.04011547,664.16,663.13,0.30159998]
[1740150298005,1.87120022,664.15,663.13,0.30159998]
[1740150298203,1.16947352,664.14,663.13,0.30159998]
[1740150298408,1.4684705,664.23,663.13,0.30159998]
[1740150298707,1.4684705,664.21,663.13,0.30159998]
[1740150298907,2.62629206,665.27,663.13,0.30159998]
[1740150298908,5.31761936,664.2,663.13,0.30159998]
[1740150299207,3.04113987,664.19,663.13,0.30159998]
[1740150299408,3.04113987,664.18,663.13,0.30159998]
[1740150299706,3.04113987,664.17,663.13,0.30159998]
[1740150299909,3.04113987,664.16,663.13,0.30159998]
[1740150300206,3.04113987,664.15,663.13,0.30159998]
[1740150300407,3.04113987,664.14,663.13,0.30159998]
[1740150300605,3.04113987,664.13,663.13,0.30159998]
[1740150300804,3.04113987,664.12,663.13,0.30159998]
[1740150301010,2.27647949,664.14,663.13,0.30159998]
[1740150301305,1.4684705,664.44,663.13,0.30159998]
[1740150301506,3.04201882,664.43,663.13,0.30159998]
[1740150301711,3.04201882,664.42,663.13,0.30159998]
[1740150301908,3.04201882,664.41,663.13,0.30159998]
[1740150302105,3.04201882,664.4,663.13,0.30159998]
[1740150302308,3.04201882,664.39,663.13,0.30159998]
[1740150302505,3.04201882,664.38,663.13,0.30159998]
[1740150302709,3.04201882,664.37,663.13,0.30159998]
[1740150302910,3.04201882,664.36,663.13,0.30159998]
[1740150303114,3.04201882,664.35,663.13,0.30159998]
[1740150303305,3.04201882,664.34,663.13,0.30159998]
[1740150303508,3.04201882,664.33,663.13,0.30159998]
[1740150303710,3.04201882,664.32,663.13,0.30159998]
[1740150303910,3.04201882,664.31,663.13,0.30159998]
[1740150304109,3.04201882,664.3,663.13,0.30159998]
[1740150304311,3.04201882,664.29,663.13,0.30159998]
[1740150304509,1.4684705,664.25,663.13,0.30159998]
[1740150304712,1.4684705,664.22,663.13,0.30159998]
[1740150304915,3.04201882,664.21,663.13,0.30159998]
[1740150305213,3.04201882,664.2,663.13,0.30159998]
[1740150305511,1.4684705,664.14,663.13,0.30159998]
[1740150305713,1.4684705,664.08,663.13,0.30159998]
[1740150305915,4.51048932,664.07,663.13,0.30159998]
[1740150306211,3.04201882,664.06,663.13,0.30159998]
[1740150306416,3.04201882,664.05,663.24,2.29058457]
[1740150306714,3.04201882,664.04,663.26,0.30154087]
[1740150306911,4.51048932,664.03,663.26,0.30154087]
[1740150307111,1.4684705,664.0,663.26,0.30154087]
[1740150307407,3.04201882,663.99,663.26,0.30154087]
[1740150307609,3.04201882,663.98,663.26,0.30154087]
[1740150307809,3.04201882,663.97,663.26,0.30154087]
[1740150308014,3.04201882,663.96,663.26,0.30154087]
[1740150308215,3.04201882,663.95,663.26,0.30154087]
[1740150308414,3.04201882,663.94,663.26,0.30154087]
[1740150308714,3.04201882,663.93,663.26,0.30154087]
[1740150308915,5.31972877,663.92,663.26,0.30154087]
[1740150309109,3.04201882,663.91,663.26,0.30154087]
[1740150309414,2.27770995,663.92,663.26,0.30154087]
[1740150309415,4.51048932,663.9,663.26,0.30154087]
[1740150309607,3.04201882,663.89,663.26,0.30154087]
[1740150309810,3.04201882,663.88,663.26,0.30154087]
[1740150310012,3.04201882,663.87,663.26,0.30154087]
[1740150310213,3.04201882,663.86,663.26,0.30154087]
[1740150310410,3.04201882,663.85,663.26,0.30154087]
[1740150310610,3.04201882,663.84,663.26,0.30154087]
[1740150310815,3.04201882,663.83,663.26,0.30154087]
[1740150311009,3.04201882,663.82,663.26,0.30154087]
[1740150311215,2.27770995,663.84,663.26,0.30154087]
[1740150311216,3.04201882,663.81,663.26,0.30154087]
[1740150311417,3.04201882,663.8,663.26,0.30154087]
[1740150311615,3.04201882,663.79,663.26,0.30154087]
[1740150311915,3.04201882,663.78,663.26,0.30154087]
[1740150312116,1.47702142,663.74,663.26,0.30154087]
[1740150312317,4.53329834,663.73,663.26,0.30154087]
[1740150312517,3.05627692,663.72,663.26,0.30154087]
[1740150312818,3.05627692,663.71,663.26,0.30154087]
[1740150313116,3.05627692,663.7,663.26,0.30154087]
[1740150313318,3.05627692,663.69,663.26,0.30154087]
[1740150313518,3.05935068,663.68,663.26,0.30154087]
[1740150313818,3.05935068,663.67,663.26,0.30154087]
[1740150314015,3.05935068,663.66,663.26,0.30154087]
[1740150314318,3.05935068,663.65,663.26,0.30154087]
[1740150314513,3.05935068,663.64,663.26,0.30154087]
[1740150314718,3.05935068,663.63,663.26,0.30154087]
[1740150314919,3.05935068,663.62,663.26,0.30154087]
[1740150315120,3.05935068,663.61,663.26,0.30154087]
[1740150315319,3.05935068,663.6,663.26,0.30154087]
[1740150315513,3.05935068,663.59,663.26,0.30154087]
[1740150315715,2.27770995,663.61,663.26,0.30154087]
[1740150316418,1.47856453,663.74,663.26,0.30154087]
[1740150316618,3.06163132,663.73,663.26,0.30154087]
[1740150316819,3.06163132,663.72,663.26,0.30154087]
[1740150317019,3.06163132,663.71,663.26,0.30154087]
[1740150317221,3.06163132,663.7,663.26,0.30154087]
[1740150317521,3.06163132,663.69,663.26,0.30154087]
[1740150317716,3.06163132,663.68,663.26,0.30154087]
[1740150317924,3.06163132,663.67,663.26,0.30154087]
[1740150318223,2.29268801,663.66,663.26,0.30154087]
[1740150318623,1.47856453,663.82,663.26,0.30154087]
[1740150318815,3.06257281,663.81,663.26,0.30154087]
[1740150319019,3.06257281,663.8,663.26,0.30154087]
[1740150319221,3.06257281,663.79,663.26,0.30154087]
[1740150319416,4.54113734,663.78,663.26,0.30154087]
[1740150319622,3.06257281,663.77,663.26,0.30154087]
[1740150319816,3.06257281,663.76,663.26,0.30154087]
[1740150320016,3.06257281,663.75,663.26,0.30154087]
[1740150320222,3.06257281,663.74,663.26,0.30154087]
[1740150320422,3.06257281,663.73,663.26,0.30154087]
[1740150320618,2.29295896,663.73,663.26,0.30154087]
[1740150321124,1.47856453,663.97,663.26,0.30154087]
[1740150321324,3.06320851,663.96,663.26,0.30154087]
[1740150321526,3.06320851,663.95,663.26,0.30154087]
[1740150321825,2.2936607,663.94,663.26,0.30154087]
[1740150322424,1.47856453,664.17,663.26,0.30154087]
[1740150322724,1.47856453,664.14,663.26,0.30154087]
[1740150322924,3.06465695,664.13,663.26,0.30154087]
[1740150323124,3.06465695,664.12,663.26,0.30154087]
[1740150323322,3.06440784,664.11,663.26,0.30154087]
[1740150323523,1.11177095,665.59,663.26,0.30154087]
[1740150323524,3.06440784,664.1,663.26,0.30154087]
[1740150323819,5.35895971,664.09,663.26,0.30154087]
[1740150324025,3.06440784,664.08,663.26,0.30154087]
[1740150324223,3.06440784,664.07,663.26,0.30154087]
[1740150324425,3.06440784,664.06,663.26,0.30154087]
[1740150324726,3.06440784,664.05,663.26,0.30154087]
[1740150324923,5.35895971,664.04,663.26,0.30154087]
[1740150325125,3.06440784,664.03,663.26,0.30154087]
[1740150325326,3.06440784,664.02,663.26,0.30154087]
[1740150325522,3.06440784,664.01,663.26,0.30154087]
[1740150325729,3.06440784,664.0,663.27,2.29058457]
[1740150325930,3.06440784,663.99,663.28,0.30153178]
[1740150326127,2.29455187,664.0,663.28,0.30153178]
[1740150326128,3.06505966,663.98,663.28,0.30153178]
[1740150326328,3.06488211,663.97,663.28,0.30153178]
[1740150326531,3.06488211,663.96,663.28,0.30153178]
[1740150326733,3.06488211,663.95,663.28,0.30153178]
[1740150327031,5.35943398,663.94,663.28,0.30153178]
[1740150327232,3.06441024,663.93,663.28,0.30153178]
[1740150327428,3.06441024,663.92,663.28,0.30153178]
[1740150327629,5.35896211,663.91,663.28,0.30153178]
[1740150327930,5.35896211,663.9,663.28,0.30153178]
[1740150328126,3.06441024,663.89,663.28,0.30153178]
[1740150328326,3.06441024,663.88,663.28,0.30153178]
[1740150328527,2.29455187,663.88,663.28,0.30153178]
[1740150329029,1.11177095,665.65,663.28,0.30153178]
[1740150329423,1.48126146,664.0,663.28,0.30153178]
[1740150329628,1.48126146,663.98,663.28,0.30153178]
[1740150329831,3.06529247,663.97,663.28,0.30153178]
[1740150330125,3.06529247,663.96,663.28,0.30153178]
[1740150330329,4.54655393,663.95,663.28,0.30153178]
[1740150330529,4.54655393,663.94,663.28,0.30153178]
[1740150330731,3.06529247,663.93,663.28,0.30153178]
[1740150330930,2.29481193,663.95,663.28,0.30153178]
[1740150330931,3.06529247,663.92,663.28,0.30153178]
[1740150331127,3.06529247,663.91,663.28,0.30153178]
[1740150331331,3.06529247,663.9,663.28,0.30153178]
[1740150331632,2.29481193,663.91,663.28,0.30153178]
[1740150331832,3.06589606,663.9,663.28,0.30153178]
[1740150332031,1.48126146,664.1,663.28,0.30153178]
[1740150332231,2.64785993,665.27,663.28,0.30153178]
[1740150332232,3.06616078,664.09,663.28,0.30153178]
[1740150332431,3.06616078,664.08,663.28,0.30153178]
[1740150332628,3.06616078,664.07,663.29,1.55]
[1740150332930,3.06616078,664.06,663.29,1.55]
[1740150333130,3.06616078,664.05,663.3,0.30152268]
[1740150333329,3.06616078,664.04,663.3,0.30152268]
[1740150333530,2.29603,664.04,663.3,0.30152268]
[1740150334032,3.06787591,664.03,663.3,0.30152268]
[1740150334235,2.29603,664.03,663.3,0.30152268]
[1740150335033,1.48126146,664.37,663.3,0.30152268]
[1740150335234,3.0687118,664.36,663.3,0.30152268]
[1740150335534,3.0687118,664.35,663.3,0.30152268]
[1740150335732,3.0687118,664.34,663.3,0.30152268]
[1740150335929,3.0687118,664.33,663.3,0.30152268]
[1740150336129,3.0687118,664.32,663.3,0.30152268]
[1740150336326,3.0687118,664.31,663.3,0.30152268]
[1740150336527,3.0687118,664.3,663.3,0.30152268]
[1740150336731,3.0687118,664.29,663.3,0.30152268]
[1740150337032,3.0687118,664.28,663.3,0.30152268]
[1740150337233,2.29716497,664.31,663.3,0.30152268]
[1740150337234,3.0687118,664.27,663.3,0.30152268]
[1740150337528,3.0687118,664.26,663.3,0.30152268]
[1740150337734,3.0687118,664.25,663.3,0.30152268]
[1740150337930,1.48126146,664.2,663.3,0.30152268]
[1740150338135,1.48126146,664.17,663.3,0.30152268]
[1740150338330,5.36587677,664.16,663.3,0.30152268]
[1740150338634,3.0687118,664.15,663.3,0.30152268]
[1740150338834,3.0687118,664.14,663.3,0.30152268]
[1740150339034,1.48126146,664.1,663.3,0.30152268]
[1740150339236,1.48126146,664.07,663.3,0.30152268]
[1740150339430,3.0687118,664.06,663.3,0.30152268]
[1740150339632,3.0687118,664.05,663.3,0.30152268]
[1740150339935,5.36509563,664.04,663.3,0.30152268]
[1740150340134,3.0687118,664.03,663.3,0.30152268]
[1740150340334,3.0687118,664.02,663.3,0.30152268]
[1740150340532,3.0687118,664.01,663.3,0.30152268]
[1740150340835,3.0687118,664.0,663.3,0.30152268]
[1740150341029,3.06746688,663.99,663.3,0.30152268]
[1740150341226,1.11177095,665.53,663.3,0.30152268]
[1740150341227,5.36385071,663.98,663.3,0.30152268]
[1740150341428,3.06746688,663.97,663.3,0.30152268]
[1740150341632,3.06746688,663.96,663.3,0.30152268]
[1740150341836,3.06746688,663.95,663.3,0.30152268]
[1740150342134,3.06746688,663.94,663.3,0.30152268]
[1740150342331,3.06746688,663.93,663.3,0.30152268]
[1740150342635,2.29638383,663.95,663.3,0.30152268]
[1740150342829,3.06740242,663.94,663.3,0.30152268]
[1740150343032,3.06740242,663.93,663.3,0.30152268]
[1740150343228,3.06740242,663.92,663.3,0.30152268]
[1740150343430,3.06755348,663.91,663.3,0.30152268]
[1740150343632,2.29638383,663.94,663.3,0.30152268]
[1740150343834,3.06765161,663.93,663.3,0.30152268]
[1740150344031,3.06765161,663.92,663.3,0.30152268]
[1740150344237,3.06765161,663.91,663.3,0.30152268]
[1740150344430,2.29638383,663.93,663.3,0.30152268]
[1740150344735,3.06797041,663.92,663.3,0.30152268]
[1740150344931,3.06797041,663.91,663.3,0.30152268]
[1740150345136,3.06797041,663.9,663.3,0.30152268]
[1740150345333,2.29638383,663.92,663.3,0.30152268]
[1740150345528,3.06827085,663.91,663.3,0.30152268]
[1740150345731,2.29638383,663.91,663.3,0.30152268]
[1740150345936,1.48236451,664.02,663.3,0.30152268]
[1740150346236,4.55074588,664.01,663.3,0.30152268]
[1740150346436,3.06838137,664.0,663.3,0.30152268]
[1740150346636,4.55074588,663.99,663.3,0.30152268]
[1740150346836,4.55074588,663.98,663.3,0.30152268]
[1740150347039,3.06838137,663.97,663.3,0.30152268]
[1740150347336,2.29741904,663.99,663.3,0.30152268]
[1740150347337,3.06838137,663.96,663.31,2.29058457]
[1740150347532,5.36580041,663.95,663.32,0.30151359]
[1740150347739,3.06838137,663.94,663.32,0.30151359]
[1740150347935,2.29741904,663.95,663.32,0.30151359]
[1740150348336,1.48236451,664.3,663.32,0.30151359]
[1740150348536,3.07010548,664.29,663.32,0.30151359]
[1740150348737,3.07010548,664.28,663.32,0.30151359]
[1740150348938,3.07010548,664.27,663.32,0.30151359]
[1740150349133,1.48236451,664.23,663.32,0.30151359]
[1740150349333,1.48236451,664.21,663.32,0.30151359]
[1740150349533,5.36828479,664.2,663.32,0.30151359]
[1740150349734,1.48236451,664.09,663.32,0.30151359]
[1740150349933,1.48236451,664.07,663.32,0.30151359]
[1740150350131,3.07010548,664.06,663.32,0.30151359]
[1740150350340,3.07010548,664.05,663.32,0.30151359]
[1740150350540,3.07010548,664.04,663.32,0.30151359]
[1740150350741,3.07010548,664.03,663.32,0.30151359]
[1740150350942,3.07010548,664.02,663.32,0.30151359]
[1740150351143,3.07010548,664.01,663.32,0.30151359]
[1740150351441,3.07010548,664.0,663.32,0.30151359]
[1740150351744,3.07010548,663.99,663.32,0.30151359]
[1740150351943,3.07010548,663.98,663.32,0.30151359]
[1740150352142,3.07010548,663.97,663.32,0.30151359]
[1740150352336,3.07010548,663.96,663.32,0.30151359]
[1740150352542,3.07010548,663.95,663.32,0.30151359]
[1740150352744,3.07010548,663.94,663.32,0.30151359]
[1740150352937,2.29817931,663.95,663.32,0.30151359]
[1740150353136,3.06981282,663.94,663.32,0.30151359]
[1740150353340,5.36799213,663.93,663.32,0.30151359]
[1740150353543,3.06981282,663.92,663.32,0.30151359]
[1740150353736,3.06981282,663.91,663.32,0.30151359]
[1740150353940,3.06981282,663.9,663.32,0.30151359]
[1740150354139,3.06981282,663.89,663.32,0.30151359]
[1740150354438,3.95372794,663.88,663.32,0.30151359]
[1740150354643,3.06981282,663.87,663.32,0.30151359]
[1740150354843,3.06981282,663.86,663.32,0.30151359]
[1740150355046,3.07002579,663.85,663.32,0.30151359]
[1740150355346,2.29817931,663.88,663.32,0.30151359]
[1740150355347,3.07002579,663.84,663.32,0.30151359]
[1740150355537,3.07002579,663.83,663.32,0.30151359]
[1740150355740,3.07002579,663.82,663.32,0.30151359]
[1740150355943,2.6517079,665.24,663.32,0.30151359]
[1740150355944,5.3682051,663.81,663.32,0.30151359]
[1740150356145,3.07002579,663.8,663.32,0.30151359]
[1740150356346,3.07002579,663.79,663.32,0.30151359]
[1740150356649,1.4836412,663.77,663.32,0.30151359]
[1740150356947,3.07002579,663.76,663.32,0.30151359]
[1740150357147,3.07002579,663.75,663.32,0.30151359]
[1740150357348,3.07002579,663.74,663.32,0.30151359]
[1740150357542,3.07002579,663.73,663.32,0.30151359]
[1740150357749,3.07002579,663.72,663.32,0.30151359]
[1740150357947,2.29817931,663.74,663.32,0.30151359]
[1740150358150,3.06754274,663.73,663.32,0.30151359]
[1740150358351,1.4836412,663.88,663.32,0.30151359]
[1740150358549,3.06819565,663.87,663.32,0.30151359]
[1740150358750,1.4836412,663.91,663.32,0.30151359]
[1740150358751,3.06819565,663.86,663.32,0.30151359]
[1740150359051,3.06819565,663.85,663.32,0.30151359]
[1740150359251,3.06819565,663.84,663.32,0.30151359]
[1740150359552,3.06819565,663.83,663.32,0.30151359]
[1740150359745,3.06819565,663.82,663.32,0.30151359]
[1740150359951,3.06819565,663.81,663.32,0.30151359]
[1740150360150,3.06819565,663.8,663.32,0.30151359]
[1740150360350,3.06819565,663.79,663.32,0.30151359]
[1740150360549,3.06866438,663.78,663.32,0.30151359]
[1740150360746,1.4836412,664.03,663.32,0.30151359]
[1740150360949,3.06911892,664.02,663.32,0.30151359]
[1740150361150,2.65085745,665.16,663.32,0.30151359]
[1740150361151,3.06911892,664.01,663.32,0.30151359]
[1740150361347,3.06911892,664.0,663.32,0.30151359]
[1740150361553,3.06911892,663.99,663.32,0.30151359]
[1740150361854,1.11177095,665.24,663.32,0.30151359]
[1740150361855,1.4836412,663.88,663.32,0.30151359]
[1740150362152,3.06911892,663.87,663.32,0.30151359]
[1740150362353,3.06911892,663.86,663.32,0.30151359]
[1740150362551,3.06911892,663.85,663.32,0.30151359]
[1740150362753,3.06911892,663.84,663.32,0.30151359]
[1740150362954,3.06911892,663.83,663.32,0.30151359]
[1740150363156,3.06963941,663.82,663.32,0.30151359]
[1740150363354,2.29763084,663.83,663.32,0.30151359]
[1740150364153,1.4836412,663.99,663.32,0.30151359]
[1740150364356,1.4836412,663.97,663.32,0.30151359]
[1740150364659,3.07109827,663.96,663.32,0.30151359]
[1740150364858,3.07109827,663.95,663.32,0.30151359]
[1740150365050,3.07109827,663.94,663.32,0.30151359]
[1740150365254,3.07109827,663.93,663.32,0.30151359]
[1740150365557,3.07109827,663.92,663.32,0.30151359]
[1740150365757,3.07109827,663.91,663.32,0.30151359]
[1740150366057,3.07288378,663.9,663.32,0.30151359]
[1740150366357,2.29980944,663.9,663.32,0.30151359]
[1740150366960,1.48496711,664.01,663.32,0.30151359]
[1740150367158,3.07367832,664.0,663.32,0.30151359]
[1740150367359,3.07367832,663.99,663.32,0.30151359]
[1740150367560,3.07367832,663.98,663.32,0.30151359]
[1740150367759,2.65085745,665.08,663.32,0.30151359]
[1740150367760,1.48496711,664.03,663.32,0.30151359]
[1740150367957,2.65085745,665.08,663.32,0.30151359]
[1740150367958,1.48496711,664.1,663.32,0.30151359]
[1740150368153,4.55945468,664.09,663.32,0.30151359]
[1740150368355,3.07448757,664.08,663.32,0.30151359]
[1740150368662,1.48496711,664.16,663.32,0.30151359]
[1740150368860,2.30147008,664.08,663.32,0.30151359]
[1740150369254,1.48496711,664.18,663.32,0.30151359]
[1740150369459,3.07410753,664.17,663.32,0.30151359]
[1740150369654,3.07410753,664.16,663.32,0.30151359]
[1740150369858,3.07410753,664.15,663.32,0.30151359]
[1740150370054,3.07410753,664.15,663.4,2.29058457]
[1740150370055,3.07410753,664.14,663.4,2.29058457]